[Event "18th Charleroi Experts 2019"]
[Site "Charleroi"]
[Date "2019.08.03"]
[Round "9.5"]
[White "Dgebuadze, Alexandre"]
[Black "Hamblok, Roel"]
[Result "1/2-1/2"]
[ECO "A17"]
[WhiteElo "2495"]
[BlackElo "2261"]
[Annotator "ChessBase"]
[PlyCount "67"]
[EventDate "2019.07.22"]
[EventType "tourn"]
[EventCountry "BEL"]
[SourceTitle "playchess.com"]
[Source "ChessBase"]
[SourceQuality "1"]
[TimeControl "40/5400+30:1800+30"]

1. c4 {[%emt 0:00:00]} e6 {[%emt 0:00:04]} 2. Nc3 {[%emt 0:00:29]} d5 {[%emt 0:00:12]} 3. e3 {[%emt 0:00:38]} Nf6 {[%emt 0:00:13]} 4. Nf3 {[%emt 0:00:19]} Nbd7 {[%emt 0:01:52]} 5. b3 {[%emt 0:02:13]} b6 {[%emt 0:01:39]} 6. Bb2 {[%emt 0:04:56]} Bb7 {[%emt 0:01:48]} 7. d4 {[%emt 0:05:27]} Bd6 {[%emt 0:04:55]} 8. Qc2 {[%emt 0:02:21]} O-O {[%emt 0:05:45]} 9. Be2 {[%emt 0:05:04]} a6 {[%emt 0:02:11]} 10. O-O {[%emt 0:01:27]} Rc8 {[%emt 0:16:38]} 11. Rac1 {[%emt 0:09:03]} Qe7 {[%emt 0:03:49]} 12. Rfd1 {[%emt 0:03:37]} Rfd8 {[%emt 0:04:17]} 13. cxd5 {[%emt 0:05:11]} exd5 {[%emt 0:01:55]} 14. Qf5 {[%emt 0:03:59]} Re8 {[%emt 0:05:41]} 15. Bd3 {[%emt 0:02:33]} g6 {[%emt 0:04:09]} 16. Qh3 {[%emt 0:06:07]} Ne4 {[%emt 0:05:54]} 17. Bxe4 {[%emt 0:02:34]} dxe4 {[%emt 0:00:29]} 18. Nd2 {[%emt 0:00:53]} Nf6 {[%emt 0:06:20]} 19. Nc4 {[%emt 0:01:04]} Nd5 {[%emt 0:03:38]} 20. Nxd5 {[%emt 0:12:34]} Bxd5 {[%emt 0:00:31]} 21. Nxb6 {[%emt 0:00:52]} Be6 {[%emt 0:00:08]} 22. Nxc8 {[%emt 0:08:43]} Qg5 {[%emt 0:00:42]} 23. f4 {[%emt 0:01:26]} exf3 {[%emt 0:01:02]} 24. Qxf3 {[%emt 0:00:05]} Bd5 {[%emt 0:08:49]} 25. h4 {[%emt 0:08:41]} Qxh4 {[%emt 0:07:36]} 26. Qh3 {[%emt 0:02:38]} Qxh3 {[%emt 0:03:22]} 27. gxh3 {[%emt 0:00:04]} Rxc8 {[%emt 0:00:03]} 28. Kf2 {[%emt 0:00:09]} Re8 {[%emt 0:04:23]} 29. Rg1 {[%emt 0:00:29]} Kg7 {[%emt 0:03:02]} 30. Rg5 {[%emt 0:01:54]} c6 {[%emt 0:01:50]} 31. Rgg1 {[%emt 0:02:12]} Kg8 {[%emt 0:01:18]} 32. Rc2 {[%emt 0:01:20]} Re6 {[%emt 0:00:46]} 33. Ke2 {[%emt 0:03:01]} Be7 {[%emt 0:00:40]} 34. Bc1 {[%emt 0:02:11]} 1/2-1/2